bitfinex/quotes_BTCUSD_20241120
["timestamp","ask_amount","ask_price","bid_price","bid_amount"]
[1732133990460,0.0008556,94056.0,94055.0,0.31543512]
[1732133991126,0.0008556,94056.0,94055.0,0.20732]
[1732133991326,0.0008556,94056.0,94055.0,0.20832]
[1732133992579,0.0008556,94056.0,94055.0,0.31543512]
[1732133992813,0.0008556,94056.0,94055.0,0.31443512]
[1732133993041,0.0008556,94056.0,94055.0,0.31343512]
[1732133993269,0.0008556,94056.0,94055.0,0.31443512]
[1732133993739,6e-07,94056.0,94055.0,0.31443512]
[1732133993989,6e-07,94056.0,94055.0,0.32443512]
[1732133994193,6e-07,94056.0,94055.0,0.31443512]
[1732133994431,6e-07,94056.0,94055.0,0.32443512]
[1732133994851,6e-07,94056.0,94055.0,0.20732]
[1732133995273,0.0767006,94056.0,94055.0,0.20732]
[1732133995486,0.0997006,94056.0,94055.0,0.20732]
[1732133995949,6e-07,94056.0,94055.0,0.20732]
[1732133997705,6e-07,94056.0,94055.0,0.10732]
[1732133997918,0.0491006,94056.0,94055.0,0.10732]
[1732133998359,0.0721006,94056.0,94055.0,0.10732]
[1732133999216,0.1518006,94056.0,94055.0,0.10732]
[1732134000082,0.1518006,94056.0,94055.0,0.10632]
[1732134000956,0.1618006,94056.0,94055.0,0.10632]
[1732134001390,0.1518006,94056.0,94055.0,0.10732]
[1732134002510,0.1618006,94056.0,94055.0,0.10732]
[1732134002679,0.1618006,94056.0,94055.0,0.001]
[1732134002880,0.1618006,94056.0,94055.0,0.10732]
[1732134003091,0.1618006,94056.0,94055.0,0.10632]
[1732134003303,0.1618006,94056.0,94055.0,0.10732]
[1732134003533,0.1518006,94056.0,94055.0,0.10732]
[1732134004175,0.1518006,94056.0,94055.0,0.10632]
[1732134004845,0.1518006,94056.0,94055.0,0.10732]
[1732134005048,0.1518006,94056.0,94055.0,0.10632]
[1732134006925,0.033,94055.0,94044.0,0.04208559]
[1732134007131,0.033,94053.0,94052.0,0.106323]
[1732134008918,0.033,94053.0,94052.0,0.107323]
[1732134009532,0.033,94053.0,94052.0,0.001]
[1732134009807,0.0817,94053.0,94052.0,0.001]
[1732134010057,0.08276455,94053.0,94052.0,0.001]
[1732134010256,0.08276455,94053.0,94050.0,0.106325]
[1732134010482,0.08276455,94053.0,94051.0,0.106325]
[1732134010483,0.023,94052.0,94051.0,0.106325]
[1732134010769,0.023,94052.0,94048.0,0.106327]
[1732134010973,0.023,94052.0,94051.0,0.106325]
[1732134011188,0.01816,94052.0,94051.0,0.106325]
[1732134011403,6e-07,94056.0,94055.0,0.10632]
[1732134014446,6e-07,94056.0,94055.0,0.10732]
[1732134016427,0.16546515,94056.0,94055.0,0.10732]
[1732134016676,0.16546515,94056.0,94055.0,0.10632]
[1732134017081,0.16546515,94056.0,94055.0,0.10732]
[1732134017622,0.1644006,94056.0,94055.0,0.10632]
[1732134017807,0.1644006,94056.0,94055.0,0.10732]
[1732134018219,0.1644006,94056.0,94055.0,0.10632]
[1732134018704,0.1644006,94056.0,94055.0,0.1090292]
[1732134018919,0.0720006,94056.0,94055.0,0.1090292]
[1732134019093,6e-07,94056.0,94055.0,0.1090292]
[1732134019534,6e-07,94056.0,94055.0,0.0027092]
[1732134019782,6e-07,94056.0,94055.0,0.1090292]
[1732134020282,6e-07,94056.0,94055.0,0.1915292]
[1732134020514,6e-07,94056.0,94055.0,0.1905292]
[1732134020757,6e-07,94056.0,94055.0,0.1915292]
[1732134021232,6e-07,94056.0,94055.0,0.1905292]
[1732134021730,6e-07,94056.0,94055.0,0.45470741]
[1732134021972,6e-07,94056.0,94055.0,0.45264432]
[1732134022193,6e-07,94056.0,94055.0,0.54794371]
[1732134022419,6e-07,94056.0,94055.0,0.45364432]
[1732134023504,6e-07,94056.0,94055.0,0.32614432]
[1732134024233,6e-07,94056.0,94055.0,0.32514432]
[1732134024436,0.0008555,94065.0,94055.0,0.32514432]
[1732134024437,1e-07,94065.0,94064.0,0.11631]
[1732134024639,1e-07,94065.0,94064.0,0.44509106]
[1732134026105,1e-07,94065.0,94064.0,0.44609106]
[1732134028020,1e-07,94065.0,94064.0,0.52769106]
[1732134028863,1e-07,94065.0,94064.0,0.56990338]
[1732134029708,1e-07,94065.0,94064.0,0.56890338]
[1732134031610,1e-07,94065.0,94064.0,0.56990338]
[1732134031783,1e-07,94065.0,94064.0,0.57203445]
[1732134031983,1e-07,94065.0,94064.0,0.57103445]
[1732134032678,1e-07,94065.0,94064.0,0.57203445]
[1732134032862,1e-07,94065.0,94064.0,0.57103445]
[1732134033120,1e-07,94065.0,94064.0,0.48943445]
[1732134033317,1e-07,94065.0,94064.0,0.36876851]
[1732134033807,1e-07,94065.0,94064.0,0.26165339]
[1732134034049,1e-07,94065.0,94064.0,0.25165339]
[1732134034286,1e-07,94065.0,94064.0,0.25065339]
[1732134034753,1e-07,94065.0,94064.0,0.26065339]
[1732134034989,1e-07,94065.0,94064.0,0.25065339]
[1732134035457,0.0230001,94065.0,94064.0,0.10844107]
[1732134035678,0.11646465,94065.0,94064.0,0.10844107]
[1732134035884,0.11646465,94065.0,94064.0,0.10944107]
[1732134036303,0.1154001,94065.0,94064.0,0.10844107]
[1732134036714,0.1154001,94065.0,94064.0,0.10944107]
[1732134036951,0.1154001,94065.0,94064.0,0.10844107]
[1732134037152,0.1154001,94065.0,94064.0,0.10944107]
[1732134037567,0.1154001,94065.0,94064.0,0.10844107]
[1732134038664,0.1154001,94065.0,94064.0,0.00213107]
[1732134039095,0.1621001,94065.0,94057.0,0.106318]
[1732134039302,0.1621001,94065.0,94064.0,0.10894766]
[1732134039509,0.1621001,94065.0,94064.0,0.10631]
[1732134039720,0.1621001,94065.0,94064.0,0.10795256]
[1732134039921,0.1621001,94065.0,94064.0,0.10895256]
[1732134040388,0.1621001,94065.0,94064.0,0.10795256]
[1732134040833,0.1621001,94065.0,94064.0,0.10895256]
[1732134042548,0.1621001,94065.0,94064.0,0.10795256]
[1732134042767,0.1621001,94065.0,94064.0,0.10966376]
[1732134042973,0.1621001,94065.0,94064.0,0.11066376]
[1732134043384,0.1621001,94065.0,94064.0,0.00435376]
[1732134043594,0.1621001,94065.0,94064.0,0.11066376]
[1732134043820,0.1621001,94065.0,94064.0,0.00435376]
[1732134044246,0.26921522,94065.0,94064.0,0.00335376]
[1732134044474,0.26921522,94065.0,94064.0,0.10966376]
[1732134044688,0.26921522,94065.0,94064.0,0.1080212]
[1732134044895,0.26921522,94065.0,94064.0,0.10957259]
[1732134045562,0.26921522,94065.0,94064.0,0.00326259]
[1732134046196,0.1521001,94065.0,94064.0,0.11057259]
[1732134046408,0.1621001,94065.0,94064.0,0.11057259]
[1732134047444,0.1621001,94065.0,94064.0,0.10957259]
[1732134048186,0.1621001,94065.0,94064.0,0.11057259]
[1732134048397,0.1621001,94065.0,94064.0,0.00426259]
[1732134048602,0.26921522,94065.0,94064.0,0.00426259]
[1732134048778,0.26921522,94065.0,94064.0,0.0027112]
[1732134049264,0.26921522,94065.0,94064.0,0.11057259]
[1732134049745,0.26921522,94065.0,94064.0,0.10631]
[1732134049984,0.26921522,94065.0,94064.0,0.10781765]
[1732134050228,0.1621001,94065.0,94064.0,0.10881765]
[1732134051187,0.01,94076.0,94064.0,0.10881765]
[1732134051188,0.002,94076.0,94065.0,0.106309]
[1732134051417,0.12166594,94070.0,94064.0,0.00250765]
[1732134051655,0.10711512,94069.0,94066.0,0.00151387]
[1732134051856,0.10711512,94069.0,94066.0,0.106308]
[1732134052100,0.10711512,94069.0,94068.0,0.106306]
[1732134052748,0.10711512,94069.0,94068.0,0.10781365]
[1732134053189,0.023,94069.0,94068.0,0.10781365]
[1732134053402,0.0002,94079.0,94078.0,0.106294]
[1732134054143,0.0002,94079.0,94078.0,0.10783117]
[1732134056487,0.0002,94079.0,94078.0,0.10883117]
[1732134056704,0.0002,94079.0,94078.0,0.10783117]
[1732134057138,0.0002,94079.0,94078.0,0.10883117]
[1732134060427,0.0002,94079.0,94078.0,0.12883117]
[1732134061358,0.0002,94079.0,94078.0,0.21203117]
[1732134061579,0.0002,94079.0,94078.0,0.21309403]
[1732134061825,0.0002,94079.0,94078.0,0.31203117]
[1732134062059,0.0002,94079.0,94078.0,0.35602543]
[1732134062792,0.0002,94079.0,94078.0,0.27282543]
[1732134063340,0.0002,94079.0,94078.0,0.27182543]
[1732134063580,0.0002,94079.0,94078.0,0.11783117]
[1732134064055,0.0002,94079.0,94078.0,0.11883117]
[1732134064288,0.0002,94079.0,94078.0,0.11783117]
[1732134064777,0.0002,94079.0,94078.0,0.10783117]
[1732134064980,0.0002,94079.0,94078.0,0.11783117]
[1732134065189,0.0002,94079.0,94078.0,0.10783117]
[1732134066491,0.13031512,94079.0,94078.0,0.00153717]
[1732134066733,0.13031512,94079.0,94078.0,0.00253717]
[1732134066986,0.13031512,94079.0,94078.0,0.001]
[1732134067239,0.13031512,94079.0,94060.0,0.15835741]
[1732134067240,0.1063,94073.0,94063.0,0.106311]
[1732134067460,0.12166594,94074.0,94064.0,0.1080202]
[1732134067669,0.12166594,94074.0,94067.0,0.106306]
[1732134067670,0.023,94073.0,94067.0,0.106306]
[1732134068092,0.023,94073.0,94069.0,0.106304]
[1732134068362,0.023,94073.0,94067.0,0.106306]
[1732134068363,0.023,94073.0,94068.0,0.00151344]
[1732134068574,0.023,94073.0,94070.0,0.00151266]
[1732134068822,0.023,94073.0,94070.0,0.106303]
[1732134069064,0.023,94073.0,94072.0,0.106301]
[1732134069546,0.023,94073.0,94072.0,0.10781357]
[1732134070250,0.023,94076.0,94072.0,0.00151257]
[1732134070468,0.0684,94077.0,94072.0,0.00151257]
[1732134070469,0.1063,94073.0,94072.0,0.00151257]
[1732134070716,0.1063,94073.0,94064.0,0.0027112]
[1732134070717,0.002,94070.0,94064.0,0.0027112]
[1732134070921,0.023,94067.0,94064.0,0.0027112]
[1732134071162,0.023,94067.0,94065.0,0.106308]
[1732134071163,0.10711512,94066.0,94065.0,0.106308]
[1732134071376,0.13011512,94066.0,94065.0,0.106308]
[1732134071786,0.023,94065.0,94064.0,0.0017112]
[1732134072019,0.13011512,94065.0,94064.0,0.0017112]
[1732134072244,0.13011512,94065.0,94064.0,0.0027112]
[1732134072711,0.13011512,94065.0,94064.0,0.0017112]
[1732134072932,0.13211512,94065.0,94064.0,0.0017112]
[1732134073152,0.32501493,94065.0,94064.0,0.0017112]
[1732134073392,0.25711512,94065.0,94064.0,0.0017112]
[1732134074264,0.023,94071.0,94070.0,0.106303]
[1732134074473,0.0461,94074.0,94072.0,0.106301]
[1732134074474,0.023,94073.0,94072.0,0.106301]
[1732134075340,0.023,94073.0,94072.0,0.10784069]
[1732134075773,0.023,94077.0,94072.0,0.10784069]
[1732134075988,0.13011512,94076.0,94075.0,0.106298]
[1732134076634,0.13011512,94076.0,94075.0,0.10783769]
[1732134077048,0.023,94077.0,94075.0,0.10783769]
[1732134077296,0.023,94077.0,94076.0,0.106297]
[1732134077922,0.23641112,94077.0,94065.0,0.116308]
[1732134078140,0.129296,94077.0,94076.0,0.00153969]
[1732134078351,0.06347617,94077.0,94072.0,0.001]
[1732134078625,0.06347617,94077.0,94065.0,0.05218087]
[1732134078825,0.023,94075.0,94068.0,0.106305]
[1732134079140,0.023,94077.0,94068.0,0.106305]
[1732134079345,0.023,94071.0,94069.0,0.00147172]
[1732134079545,0.14466594,94071.0,94064.0,0.0017112]
[1732134079757,0.14666594,94071.0,94070.0,0.00146774]
[1732134079989,0.30118106,94071.0,94064.0,0.1080202]
[1732134080204,0.023,94069.0,94068.0,0.109016]
[1732134080401,0.13011512,94069.0,94068.0,0.109016]
[1732134080825,0.13011512,94069.0,94068.0,0.002711]
[1732134081072,0.26286063,94069.0,94068.0,0.002711]
[1732134081458,0.26486063,94069.0,94068.0,0.002711]
[1732134081663,0.26486063,94069.0,94064.0,0.0017112]
[1732134081664,0.729309,94065.0,94064.0,0.0017112]
[1732134082022,1.35793987,94065.0,94064.0,0.0017112]
[1732134082227,1.46700242,94065.0,94064.0,0.0017112]
[1732134082644,0.023,94056.0,94055.0,0.0017092]
[1732134082849,0.13011512,94056.0,94055.0,0.0017092]
[1732134083057,0.023,94059.0,94055.0,0.0017092]
[1732134083331,0.023,94057.0,94056.0,0.106319]
[1732134083568,0.13011512,94057.0,94056.0,0.106319]
[1732134083876,0.023,94057.0,94056.0,0.106319]
[1732134084081,0.023,94070.0,94056.0,0.106319]
[1732134084304,0.023,94068.0,94066.0,0.106308]
[1732134084531,0.13011512,94067.0,94066.0,0.106308]
[1732134084911,0.023,94066.0,94065.0,0.106309]
[1732134085138,0.13011512,94066.0,94065.0,0.106309]
[1732134085508,0.13011512,94066.0,94055.0,0.0027092]
[1732134085711,0.09526148,94076.0,94055.0,0.0027092]
[1732134085712,0.023,94064.0,94063.0,0.106311]
[1732134085970,0.13011512,94064.0,94063.0,0.106311]
[1732134086227,0.023,94064.0,94063.0,0.10766823]
[1732134086821,0.023,94064.0,94063.0,0.00135723]
[1732134087025,0.14666594,94071.0,94063.0,0.00135723]
[1732134087229,0.023,94069.0,94063.0,0.106311]
[1732134087448,0.10711512,94068.0,94065.0,0.106308]
[1732134087639,0.023,94067.0,94065.0,0.106308]
[1732134087846,0.13011512,94067.0,94066.0,0.00135803]
[1732134088250,0.13011512,94067.0,94066.0,0.10766603]
[1732134088425,0.13011512,94067.0,94062.0,0.106311]
[1732134088644,0.13011512,94067.0,94066.0,0.00135723]
[1732134088850,0.13011512,94067.0,94065.0,0.106309]
[1732134089035,0.13011512,94067.0,94066.0,0.00135723]
[1732134089673,0.13011512,94067.0,94064.0,0.10631]
[1732134089892,0.13011512,94067.0,94066.0,0.00135723]
[1732134090095,0.13011512,94067.0,94065.0,0.10766703]
[1732134090437,0.13011512,94067.0,94066.0,0.10767054]
[1732134091379,0.23642212,94067.0,94066.0,0.00136254]
[1732134091577,0.023,94060.0,94056.0,0.00047989]
[1732134091775,0.023,94058.0,94056.0,0.00047989]
[1732134092429,0.002,94068.0,94062.0,0.106312]
[1732134092430,0.023,94068.0,94062.0,0.106312]
[1732134092646,0.14283062,94071.0,94056.0,0.00047989]
[1732134092647,0.023,94074.0,94068.0,0.106305]
[1732134092879,0.64281732,94078.0,94065.0,0.106308]
[1732134092880,0.023,94072.0,94065.0,0.106308]
[1732134093079,0.023,94070.0,94067.0,0.106306]
[1732134093276,0.023,94070.0,94065.0,0.106308]
[1732134093509,0.12012663,94069.0,94065.0,0.106308]
[1732134093779,0.023,94066.0,94057.0,0.106317]
[1732134094112,0.129308,94066.0,94065.0,0.001711]
[1732134094484,0.13011512,94066.0,94065.0,0.001711]
[1732134095822,0.16166642,94066.0,94065.0,0.001711]
[1732134096604,0.26797442,94066.0,94065.0,0.001711]
[1732134097012,0.16166642,94066.0,94065.0,0.001711]
[1732134097205,0.26797442,94066.0,94065.0,0.001711]
[1732134097470,0.16166642,94066.0,94065.0,0.001711]
[1732134098401,0.26797442,94066.0,94065.0,0.001711]
[1732134098655,0.43724036,94066.0,94065.0,0.001711]
[1732134098903,0.51394036,94066.0,94065.0,0.001711]
[1732134099367,0.61114162,94066.0,94065.0,0.001711]
[1732134099599,0.51594036,94066.0,94065.0,0.001711]
[1732134100497,0.75874225,94066.0,94065.0,0.001711]
[1732134100701,0.61594036,94066.0,94065.0,0.001711]
[1732134101577,0.75869665,94066.0,94065.0,0.001711]
[1732134101780,0.72714535,94066.0,94065.0,0.002711]
[1732134102031,0.72814532,94066.0,94065.0,0.002711]
[1732134102256,1.1975035,94066.0,94065.0,0.002711]
[1732134102803,1.6975035,94066.0,94065.0,0.002711]
[1732134103030,1.59745145,94066.0,94065.0,0.002711]
[1732134103479,1.80067698,94066.0,94065.0,0.001711]
[1732134103698,1.705514,94066.0,94065.0,0.001711]
[1732134103939,1.80067698,94066.0,94065.0,0.001711]
[1732134104700,1.3313188,94066.0,94065.0,0.001711]
[1732134105515,1.37891208,94066.0,94065.0,0.001711]
[1732134106527,1.37889007,94066.0,94065.0,0.001711]
[1732134107620,0.356218,94057.0,94056.0,0.00047989]
[1732134107760,0.356218,94057.0,94028.0,0.0017096]
[1732134107761,0.653836,94041.0,94028.0,0.0017096]
[1732134107977,1.55437524,94041.0,94028.0,0.0017096]
[1732134108177,1.55437524,94041.0,93991.0,0.0017104]
[1732134108178,0.023,94009.0,94008.0,0.004254]
[1732134108612,0.023,94008.0,93993.0,0.01]
[1732134108820,0.023,94006.0,93993.0,0.01]
[1732134109133,0.023,94004.0,93994.0,0.00137556]
[1732134109840,0.023,94004.0,93998.0,0.01]
[1732134110067,0.023,94004.0,93999.0,0.106383]
[1732134110299,0.023,94004.0,94000.0,0.00137365]
[1732134110527,0.023,94004.0,93998.0,0.01]
[1732134110755,0.1079,94025.0,94004.0,0.01]
[1732134110961,0.023,94015.0,94011.0,0.10637]
[1732134111168,0.023,94015.0,94013.0,0.106368]
[1732134111392,0.70026594,94034.0,94013.0,0.106368]
[1732134111393,0.09508068,94042.0,94025.0,0.01]
[1732134111640,0.12166594,94033.0,94014.0,0.00139227]
[1732134111830,0.12166594,94026.0,94013.0,0.0787]
[1732134112052,0.12166594,94026.0,94015.0,0.00140111]
[1732134112053,0.212711,94024.0,94015.0,0.00140111]
[1732134112266,0.212711,94024.0,94002.0,0.0787]
[1732134112267,0.12166594,94018.0,94002.0,0.0787]
[1732134112485,0.10711512,94017.0,94003.0,0.00140429]
[1732134112714,0.10711512,94017.0,94003.0,0.106379]
[1732134112715,0.023,94016.0,94003.0,0.106379]
[1732134112938,0.023,94014.0,94003.0,0.106379]
[1732134113157,0.023,94012.0,94004.0,0.0014019]
[1732134113362,0.023,94010.0,94004.0,0.0014019]
[1732134113569,0.13011512,94010.0,94004.0,0.0014019]
[1732134113782,0.13011512,94010.0,94003.0,0.106379]
[1732134114011,0.13011512,94010.0,94005.0,0.00139632]
[1732134114223,0.023,94008.0,94004.0,0.00139711]
[1732134114449,0.023,94008.0,93991.0,0.1081024]
[1732134114450,0.25180163,94007.0,94006.0,0.00139552]
[1732134114681,0.25180163,94007.0,93991.0,0.0017104]
[1732134114682,0.123,94004.0,93991.0,0.0017104]
[1732134114869,0.623,94006.0,93991.0,0.0017104]
[1732134114870,0.14466594,93992.0,93991.0,0.0017104]
[1732134115076,0.25178106,93992.0,93991.0,0.0017104]
[1732134116858,0.25178106,93992.0,93991.0,0.00302625]
[1732134117300,0.25178106,93992.0,93991.0,0.0017104]
[1732134117518,0.36017306,93992.0,93991.0,0.0017104]
[1732134117852,0.23850712,93992.0,93991.0,0.0017104]
[1732134119529,0.13211512,93992.0,93991.0,0.0017104]
[1732134119735,0.13011512,93992.0,93991.0,0.0017104]
[1732134120157,0.0826,94011.0,93991.0,0.0017104]
[1732134120158,0.46935818,94007.0,93991.0,0.0017104]
[1732134120373,0.10711512,94004.0,94000.0,0.106382]
[1732134120581,0.10711512,94004.0,93995.0,0.138305]
[1732134120781,0.46935818,94007.0,93996.0,0.01]
[1732134121039,0.00106389,94006.0,93996.0,0.00127751]
[1732134121489,0.00106389,94006.0,93983.0,0.138321]
[1732134121716,0.00106389,94006.0,93997.0,0.0012783]
[1732134121907,0.00106389,94006.0,93968.0,0.140054]
[1732134121908,0.12166594,94002.0,93988.0,0.106396]
[1732134122060,0.13117901,94001.0,93990.0,0.106393]
[1732134122231,0.13117901,94001.0,93977.0,0.101711]
[1732134122232,0.13117901,94001.0,93993.0,0.138307]
[1732134122432,0.00106389,94001.0,94000.0,0.106382]
[1732134122651,0.46935818,94007.0,94002.0,0.10638]
[1732134122652,0.00106389,94006.0,94002.0,0.10638]
[1732134122877,0.00106389,94006.0,93998.0,0.138299]
[1732134122878,0.00106389,94006.0,94000.0,0.00126971]
[1732134123111,0.00106389,94006.0,93998.0,0.138299]
[1732134123320,0.00106389,94013.0,94003.0,0.106379]
[1732134123521,0.023,94011.0,93995.0,0.138304]
[1732134123775,0.025,94009.0,94004.0,0.00127609]
[1732134123947,0.023,94007.0,93984.0,0.083]
[1732134124211,0.023,94005.0,93984.0,0.083]
[1732134124410,0.023,94003.0,93985.0,0.00128624]
[1732134124617,0.023,94003.0,93984.0,0.083]
[1732134124618,0.023,94001.0,93984.0,0.22132]
[1732134124821,0.00106389,94000.0,93995.0,0.106388]
[1732134125020,0.00106389,94000.0,93985.0,0.00128146]
[1732134125223,0.00106389,94000.0,93996.0,0.10765788]
[1732134125537,0.00106389,94000.0,93997.0,0.00127108]
[1732134126072,0.00106389,94000.0,93995.0,0.106388]
[1732134126207,0.00106389,94000.0,93998.0,0.00127028]
[1732134126414,0.00106389,94000.0,93995.0,0.106388]
[1732134126647,0.00106389,94000.0,93999.0,0.00126949]
[1732134126973,0.00106389,94000.0,93999.0,0.00127005]
[1732134127207,0.00106389,94000.0,93996.0,0.106387]
[1732134127428,0.00106389,94000.0,93999.0,0.00126997]
[1732134127656,0.00106389,94000.0,93996.0,0.106387]
[1732134127874,0.00106389,94000.0,93999.0,0.00126997]
[1732134128087,0.00106389,94000.0,93996.0,0.106387]
[1732134128298,0.00106389,94000.0,93999.0,0.00126938]
[1732134128522,0.00106389,94000.0,93996.0,0.106387]
[1732134128769,0.00106389,94000.0,93999.0,0.10765338]
[1732134128996,0.01,94015.0,93984.0,0.083]
[1732134128997,0.00106389,94010.0,93985.0,0.16393694]
[1732134129276,0.00106389,94010.0,94006.0,0.106375]
[1732134129471,0.00106389,94010.0,93999.0,0.00126938]
[1732134129472,0.00106389,94013.0,94008.0,0.106372]
[1732134129608,0.10817901,94013.0,94007.0,0.00127098]
[1732134129832,0.10817901,94013.0,94009.0,0.00127178]
[1732134130037,0.10817901,94013.0,94009.0,0.106372]
[1732134130255,0.10817901,94013.0,94010.0,0.10764098]
[1732134130466,0.023,94012.0,94010.0,0.10764198]
[1732134130862,0.00106389,94011.0,94010.0,0.00127098]
[1732134131282,0.023,94010.0,93994.0,0.138305]
[1732134131485,0.0008563,94004.0,93990.0,0.0017126]
[1732134131689,0.02406389,94003.0,94002.0,0.10638]
[1732134132798,0.023,94003.0,94002.0,0.10638]
[1732134133017,0.0008563,94004.0,94003.0,0.182879]
[1732134135075,0.0008563,94004.0,94003.0,0.28515469]
[1732134135287,0.0008563,94004.0,94003.0,0.28409094]
[1732134135747,0.0008563,94004.0,94003.0,0.39120606]
[1732134135950,0.0008563,94004.0,94003.0,0.44860606]
[1732134138484,0.0008563,94004.0,94003.0,0.33149094]
[1732134138977,0.0008563,94004.0,94003.0,0.18409094]
[1732134139221,0.0008563,94004.0,94003.0,0.10759094]
[1732134140415,0.0008563,94004.0,94000.0,0.138296]
[1732134140416,0.023,94003.0,93983.0,0.075]
[1732134140618,0.023,94003.0,94002.0,0.10638]
[1732134141064,0.023,94003.0,93997.0,0.1383]
[1732134141274,0.023,94003.0,94001.0,0.10638]
[1732134141488,0.023,94003.0,94002.0,0.10638]
[1732134141701,0.023,94003.0,93998.0,0.1383]
[1732134141908,0.023,94003.0,94001.0,0.106381]
[1732134142793,0.023,94003.0,93983.0,0.075]
[1732134142794,0.023,94001.0,93984.0,0.13832]
[1732134143023,0.023,93993.0,93973.0,0.001711]
[1732134143252,0.023,93991.0,93974.0,0.138335]
[1732134143484,0.023,93991.0,93978.0,0.106407]
[1732134143485,0.13011512,93991.0,93978.0,0.106407]
[1732134143701,0.13011512,93991.0,93973.0,0.001711]
[1732134143912,0.023,93982.0,93973.0,0.001711]
[1732134144130,0.023,93980.0,93973.0,0.001711]
[1732134144344,0.023,93978.0,93973.0,0.001711]
[1732134144581,0.21071512,93978.0,93973.0,0.001711]
[1732134145429,0.21177901,93978.0,93973.0,0.001711]
[1732134145635,0.31818601,93978.0,93973.0,0.001711]
[1732134145853,0.31712212,93978.0,93973.0,0.001711]
[1732134146347,0.21271512,93978.0,93973.0,0.001711]
[1732134146583,0.34018601,93978.0,93973.0,0.001711]
[1732134146829,0.44818467,93978.0,93973.0,0.001711]
[1732134147053,0.44818467,93978.0,93962.0,0.0017108]
[1732134147054,0.128424,93963.0,93962.0,0.0017108]
[1732134147298,1.02602713,93963.0,93962.0,0.0017108]
[1732134147538,1.02496324,93963.0,93962.0,0.0017108]
[1732134147792,1.02496324,93963.0,93911.0,0.0004]
[1732134147793,0.002,93933.0,93911.0,0.0004]
[1732134148057,0.002,93933.0,93911.0,0.138827]
[1732134148058,0.25284495,93932.0,93911.0,0.138827]
[1732134148317,0.25284495,93932.0,93923.0,0.106469]
[1732134148318,0.13011512,93932.0,93923.0,0.106469]
[1732134149082,0.01,93941.0,93918.0,0.138417]
[1732134149083,0.023,93949.0,93928.0,0.138403]
[1732134149319,0.01,93954.0,93943.0,0.106446]
[1732134149320,0.00106389,93948.0,93943.0,0.106446]
[1732134149566,0.01,93954.0,93926.0,0.0765]
[1732134149567,0.00106389,93953.0,93940.0,0.138385]
[1732134149808,0.00106389,93953.0,93931.0,0.0014645]
[1732134150070,0.00106389,93960.0,93959.0,0.106429]
[1732134150325,0.02,93976.0,93932.0,0.11711512]
[1732134150326,0.00106389,93968.0,93967.0,0.10642]
[1732134150559,0.01,93977.0,93936.0,0.0476]
[1732134150560,0.00106389,93976.0,93959.0,0.00117748]
[1732134150780,0.10711512,93975.0,93963.0,0.106424]
[1732134150986,0.10711512,93975.0,93965.0,0.106422]
[1732134150987,0.00106389,93974.0,93965.0,0.106422]
[1732134151216,0.10711512,93973.0,93965.0,0.106422]
[1732134151426,0.00106389,93972.0,93964.0,0.00116964]
[1732134151645,0.10911512,93971.0,93956.0,0.138361]
[1732134151853,0.02406389,93970.0,93965.0,0.0011754]
[1732134152058,0.023,93968.0,93962.0,0.106425]
[1732134152481,0.023,93968.0,93940.0,0.1]
[1732134152482,0.023,93968.0,93967.0,0.10642]
[1732134152892,0.023,93968.0,93967.0,0.10758902]
[1732134153105,0.00106389,93981.0,93978.0,0.106407]
[1732134153318,0.01,93989.0,93967.0,0.00116902]
[1732134153319,0.10711512,93980.0,93967.0,0.00116902]
[1732134153521,0.10711512,93980.0,93979.0,0.00114037]
[1732134153723,0.10711512,93980.0,93972.0,0.106414]
[1732134154146,0.10711512,93980.0,93959.0,0.138357]
[1732134154147,0.10711512,93980.0,93973.0,0.00115015]
[1732134154353,0.023,93979.0,93973.0,0.00115015]
[1732134154557,0.13011512,93979.0,93974.0,0.00114856]
[1732134154768,0.13011512,93979.0,93968.0,0.138344]
[1732134154991,0.13011512,93979.0,93975.0,0.00114617]
[1732134155211,0.13011512,93979.0,93972.0,0.106414]
[1732134155430,0.13011512,93979.0,93976.0,0.00114458]
[1732134155666,0.00106389,93978.0,93972.0,0.106414]
[1732134155911,0.00106389,93978.0,93977.0,0.001143]
[1732134156182,0.00106389,93978.0,93974.0,0.0017126]
[1732134156387,0.00106389,93978.0,93977.0,0.00114141]
[1732134156623,0.00106389,93978.0,93974.0,0.0017126]
[1732134156886,0.00106389,93978.0,93977.0,0.00109456]
[1732134157136,0.00106389,93978.0,93974.0,0.0007126]
[1732134157384,0.00106389,93978.0,93977.0,0.00109456]
[1732134157621,0.00106389,93978.0,93975.0,0.00109616]
[1732134157853,0.00106389,93978.0,93974.0,0.0007126]
[1732134158052,0.00106389,93978.0,93976.0,0.00109536]
[1732134158252,0.00106389,93978.0,93975.0,0.00109616]
[1732134159012,0.13011512,93979.0,93978.0,0.106407]
[1732134159013,0.023,93979.0,93978.0,0.106407]
[1732134159223,0.00106389,93988.0,93980.0,0.106405]
[1732134159435,0.00106389,93993.0,93980.0,0.106405]
[1732134159657,0.10711512,93992.0,93981.0,0.00110741]
[1732134159911,0.00106389,93991.0,93981.0,0.10751141]
[1732134160117,0.10711512,93990.0,93981.0,0.10751141]
[1732134160345,0.02406389,93989.0,93981.0,0.10751141]
[1732134160558,0.023,93988.0,93981.0,0.10751141]
[1732134160775,0.00106389,93987.0,93981.0,0.10751141]
[1732134162322,0.00106389,93987.0,93986.0,0.106398]
[1732134162588,0.00106389,93997.0,93996.0,0.106387]
[1732134162808,0.00106389,94002.0,93992.0,0.106392]
[1732134163031,0.10711512,94001.0,93989.0,0.138314]
[1732134163241,0.00106389,94000.0,93993.0,0.00109541]
[1732134163452,0.10711512,93999.0,93992.0,0.106391]
[1732134163662,0.00106389,93998.0,93994.0,0.00109302]
[1732134163882,0.00106389,93998.0,93981.0,0.04263172]
[1732134164088,0.00106389,93998.0,93995.0,0.00109062]
[1732134164287,0.00106389,93998.0,93991.0,0.106393]
[1732134164288,0.02406389,93998.0,93991.0,0.106393]
[1732134164488,0.02406389,93998.0,93996.0,0.00108943]
[1732134164702,0.02406389,93998.0,93991.0,0.106393]
[1732134164907,0.02406389,93998.0,93997.0,0.00108733]
[1732134165118,0.02406389,93998.0,93991.0,0.106393]